bitfinex/quotes_ETHUSD_20250411
["timestamp","ask_amount","ask_price","bid_price","bid_amount"]
[1744390304053,3.0,1569.2,1569.0,6.37328]
[1744390304212,3.0,1569.3,1569.2,6.37267]
[1744390304406,3.815,1569.5,1569.2,6.37267]
[1744390304899,10.18657,1569.5,1569.1,6.37294]
[1744390305102,3.815,1569.5,1569.2,6.37249]
[1744390305301,0.13801837,1569.4,1569.2,6.37249]
[1744390306635,0.13801837,1569.4,1569.3,6.37226]
[1744390307132,6.51004837,1569.4,1569.1,6.37295]
[1744390307505,6.51004837,1569.4,1569.1,12.74589]
[1744390307724,0.13801837,1569.4,1569.2,6.37243]
[1744390307938,0.53332021,1569.4,1569.1,6.37298]
[1744390308143,0.53332021,1569.4,1569.1,12.74596]
[1744390308448,0.53332021,1569.4,1569.1,6.37297]
[1744390308756,0.53332021,1569.4,1569.1,12.74594]
[1744390308963,0.21510925,1569.4,1569.2,6.37264]
[1744390309256,0.1258567,1569.3,1569.2,6.37264]
[1744390309463,0.1258567,1569.3,1569.1,12.746]
[1744390309668,16.55839,1569.5,1569.1,12.746]
[1744390309972,16.55839,1569.5,1569.1,6.373]
[1744390310125,18.315953,1569.5,1569.1,12.746]
[1744390310331,18.315953,1569.5,1569.1,6.373]
[1744390310332,6.49858071,1569.4,1569.1,6.373]
[1744390310534,12.87059071,1569.4,1569.0,12.74672]
[1744390310749,0.12663071,1569.4,1568.9,6.817]
[1744390317663,0.8086,1569.3,1568.7,0.7866]
[1744390317972,0.1495525,1569.2,1568.7,0.7866]
[1744390319186,0.1495525,1569.2,1568.7,1.54686]
[1744390320311,0.1495525,1569.2,1568.8,0.06373491]
[1744390320599,0.14862345,1569.1,1568.7,1.54686]
[1744390320901,0.14862345,1569.1,1568.7,0.76026]
[1744390321101,0.764,1569.0,1568.6,6.816]
[1744390321401,0.91146651,1569.0,1568.5,0.8264]
[1744390321604,0.91146651,1569.0,1568.5,4.43040252]
[1744390321805,0.14746651,1569.0,1568.5,4.43040252]
[1744390322475,0.7959,1568.9,1568.5,0.8264]
[1744390322770,0.14560781,1568.8,1568.5,0.8264]
[1744390323099,0.7959,1568.9,1568.5,0.8264]
[1744390323412,0.7959,1568.9,1568.3,7.5942]
[1744390323622,0.18200977,1568.8,1568.3,6.816]
[1744390323909,0.7859,1568.7,1568.3,6.816]
[1744390324071,0.7859,1568.7,1568.3,12.52975678]
[1744390325704,0.7859,1568.7,1568.1,3.8448]
[1744390326012,3.96521012,1568.7,1568.1,0.05]
[1744390326505,4.44972254,1568.7,1568.1,0.05]
[1744390326708,4.27041242,1568.7,1568.1,0.05]
[1744390326865,0.42704124,1568.6,1568.1,3.65400252]
[1744390327065,0.8095,1568.9,1568.3,3.60400252]
[1744390327404,0.14437762,1568.8,1568.4,0.7855]
[1744390327605,0.8095,1569.2,1568.5,3.60400252]
[1744390327788,0.8095,1569.2,1568.7,4.38330252]
[1744390327995,0.17894398,1569.1,1568.8,0.43833025]
[1744390328302,0.8095,1569.2,1568.7,0.7793]
[1744390328510,0.17894398,1569.1,1568.7,0.7793]
[1744390328666,0.8095,1569.2,1568.7,0.7793]
[1744390329764,0.17894398,1569.1,1568.7,0.7793]
[1744390329960,0.8095,1569.2,1568.7,0.7793]
[1744390330164,0.17894398,1569.1,1568.7,0.7793]
[1744390330400,0.8095,1569.2,1568.7,0.7793]
[1744390330713,0.17894398,1569.1,1568.7,0.7793]
[1744390331011,0.8095,1569.2,1568.7,0.7793]
[1744390333768,14.242717,1568.5,1568.1,12.80426]
[1744390334109,0.777,1568.2,1568.1,0.05]
[1744390334267,3.777,1568.4,1568.1,0.05]
[1744390334464,7.15359,1568.6,1568.3,6.37633]
[1744390334694,0.7784,1568.6,1568.4,6.37564]
[1744390335099,0.7784,1568.6,1568.4,12.75141]
[1744390335363,0.7784,1568.6,1568.4,6.37564]
[1744390335568,7.15367,1568.6,1568.3,6.37622]
[1744390335910,7.15367,1568.6,1568.3,12.75241]
[1744390336105,0.7784,1568.6,1568.4,6.37591]
[1744390336319,0.7784,1568.6,1568.4,12.75168]
[1744390336674,0.7784,1568.6,1568.5,6.37551]
[1744390337116,0.7784,1568.6,1568.4,12.75154]
[1744390337689,3.0,1568.7,1568.6,6.37511]
[1744390338009,0.7836,1569.0,1568.7,6.3747]
[1744390338173,0.7836,1569.0,1568.8,6.37424]
[1744390338711,6.37394,1568.9,1568.6,6.37498]
[1744390338910,7.15718,1569.0,1568.7,6.37444]
[1744390339067,0.7836,1569.0,1568.8,6.37425]
[1744390339271,0.14322883,1569.0,1568.9,6.37389]
[1744390339472,63.65258,1569.3,1569.0,6.3732]
[1744390339718,20.41602548,1569.3,1569.0,6.3732]
[1744390339888,20.33604,1569.3,1569.0,6.3732]
[1744390340089,6.37268,1569.2,1568.9,12.74754]
[1744390340500,6.37268,1569.2,1568.9,12.74751]
[1744390340818,13.96356,1569.3,1569.0,6.37346]
[1744390341021,7.5912,1569.3,1569.1,6.37302]
[1744390341219,0.7762,1569.3,1569.0,6.37335]
[1744390341434,3.0,1569.2,1569.0,6.37335]
[1744390341732,3.0,1569.2,1569.0,12.7467]
[1744390341933,3.0,1569.2,1569.0,6.37335]
[1744390342100,3.0,1569.2,1569.0,12.74672]
[1744390342633,13.56291,1569.5,1569.2,6.37254]
[1744390342997,6.37186,1569.4,1569.1,6.37308]
[1744390343202,6.37186,1569.4,1569.1,12.74602]
[1744390343528,6.37186,1569.4,1569.1,6.37294]
[1744390344432,6.37186,1569.4,1569.1,12.74587]
[1744390344638,12.7439,1569.4,1569.1,6.37293]
[1744390344930,6.37186,1569.4,1569.1,6.37293]
[1744390346532,1.368,1569.3,1568.8,6.37407]
[1744390346734,6.37324,1569.1,1568.8,6.37407]
[1744390346935,6.37389,1568.9,1568.6,6.37498]
[1744390347541,12.74749,1569.0,1568.6,12.74993]
[1744390348034,7.19196,1568.9,1568.6,6.3751]
[1744390348201,0.8285,1569.1,1568.6,1.33880967]
[1744390348401,7.20069,1569.4,1568.8,6.37429]
[1744390348587,7.20069,1569.4,1569.1,6.37307]
[1744390348787,6.37261,1569.3,1568.9,6.37372]
[1744390349019,12.7456,1569.2,1568.9,6.37372]
[1744390349232,6.37268,1569.2,1568.9,12.74745]
[1744390349399,6.37268,1569.2,1568.9,6.37372]
[1744390349601,6.37268,1569.2,1568.8,6.37419]
[1744390349602,3.720111,1569.3,1569.0,6.37322]
[1744390349832,0.720111,1569.3,1569.1,6.37301]
[1744390350006,13.57259,1569.4,1569.1,6.37301]
[1744390350329,0.7551,1569.6,1569.3,6.3719]
[1744390350487,0.7551,1569.6,1569.2,6.37266]
[1744390350690,6.37173,1569.5,1569.2,6.37254]
[1744390350935,12.74354,1569.5,1569.2,6.37254]
[1744390351132,6.37173,1569.5,1569.2,6.37254]
[1744390351565,0.7551,1569.6,1569.4,6.37184]
[1744390351746,0.7551,1569.6,1569.3,12.74407]
[1744390352351,0.7551,1569.6,1569.2,2.101552]
[1744390352352,0.7551,1569.6,1569.4,12.74324]
[1744390353052,1.2551,1569.6,1569.4,6.37161]
[1744390353619,1.2551,1569.6,1569.3,12.74437]
[1744390353850,7.62628,1569.6,1569.3,6.37215]
[1744390354022,7.62628,1569.6,1569.3,12.7443]
[1744390354247,1.2551,1569.6,1569.3,12.7443]
[1744390355617,1.2551,1569.6,1569.3,12.74428]
[1744390355818,9.025836,1569.6,1569.3,6.37214]
[1744390356018,15.397096,1569.6,1569.3,6.37214]
[1744390356255,9.025836,1569.6,1569.3,6.37214]
[1744390356559,9.025836,1569.6,1569.2,6.37267]
[1744390356560,2.654776,1569.6,1569.2,6.37267]
[1744390356854,0.5,1569.6,1569.5,6.37145]
[1744390357240,0.7535,1570.1,1569.8,6.37]
[1744390357415,0.7535,1570.1,1569.9,6.3698]
[1744390357818,10.12255,1570.1,1569.8,6.37]
[1744390358142,12.453086,1570.1,1569.8,6.37]
[1744390358351,12.453086,1570.1,1569.8,12.7401]
[1744390358952,12.453086,1570.1,1569.6,0.8073]
[1744390358953,10.6342343,1570.4,1570.0,6.36916]
[1744390359148,6.36931,1570.1,1569.8,6.37006]
[1744390359353,6.36931,1570.1,1569.8,12.74018]
[1744390359866,7.13247,1570.2,1569.9,12.73948]
[1744390360068,0.7638,1570.2,1570.0,6.36933]
[1744390360267,5.0366943,1570.4,1570.1,6.3687]
[1744390360640,8.0366943,1570.4,1570.0,0.636933]
[1744390360835,8.0366943,1570.4,1570.3,6.3682]
[1744390361145,7.2662943,1570.4,1570.2,12.73684]
[1744390361374,3.0,1570.4,1570.2,6.36838]
[1744390361557,3.0,1570.4,1570.1,6.36889]
[1744390361732,9.36793,1570.4,1570.1,6.36889]
[1744390362751,9.36793,1570.4,1570.1,14.0753013]
[1744390362928,9.36793,1570.4,1570.1,7.7064113]
[1744390363130,9.36793,1570.4,1570.1,7.7063913]
[1744390363328,9.36793,1570.4,1570.1,14.0752613]
[1744390363764,9.36793,1570.4,1570.1,7.7063913]
[1744390364345,9.36793,1570.4,1570.1,1.3375213]
[1744390364669,13.56131,1570.3,1570.0,0.636933]
[1744390364882,12.43874,1570.2,1569.9,6.36971]
[1744390365035,0.8244,1570.3,1569.7,12.74096]
[1744390365036,7.19383,1570.0,1569.7,12.74096]
[1744390365671,13.56347,1570.0,1569.6,6.37095]
[1744390365879,13.56347,1570.0,1569.6,14.142485]
[1744390366040,13.56347,1570.0,1569.7,6.37063]
[1744390366243,0.8244,1570.0,1569.8,6.37014]
[1744390366557,18.80827,1570.1,1569.8,6.37014]
[1744390366977,18.80827,1570.1,1569.9,0.8187]
[1744390366978,6.07,1570.1,1569.9,0.8187]
[1744390367275,6.07,1570.5,1570.4,6.3678]
[1744390367441,6.36705,1570.6,1570.4,1.355451]
[1744390367643,0.14298901,1570.5,1570.3,6.36809]
[1744390367844,0.14298901,1570.5,1570.4,6.3678]
[1744390368361,19.55441,1570.7,1570.3,12.73611]
[1744390368547,6.821,1570.7,1570.4,6.36768]
[1744390368749,0.15395769,1570.6,1570.4,6.36768]
[1744390369131,13.18772,1570.7,1570.4,6.36768]
[1744390369327,0.1530303,1570.5,1570.3,6.36811]
[1744390369571,6.3672,1570.6,1570.2,12.737]
[1744390369745,6.3672,1570.6,1570.2,6.36845]
[1744390369746,0.15315137,1570.4,1570.2,6.36845]
[1744390369936,0.15315137,1570.4,1570.3,6.36809]
[1744390370131,12.7344,1570.6,1570.3,6.36809]
[1744390370334,0.15310579,1570.4,1570.3,6.36809]
[1744390370650,0.15292344,1570.4,1570.3,12.73618]
[1744390371146,6.07,1570.7,1570.5,6.36706]
[1744390371376,6.07,1570.7,1570.5,12.73422]
[1744390371571,0.12901995,1570.6,1570.5,6.36706]
[1744390371861,6.07,1570.7,1570.6,6.36699]
[1744390373387,6.07,1570.7,1570.5,12.73431]
[1744390373690,6.07,1570.7,1570.6,6.36699]
[1744390374596,6.07,1570.7,1570.5,6.36706]
[1744390374887,6.07,1570.7,1570.4,6.3677]
[1744390375055,12.43671,1570.7,1570.4,6.3677]
[1744390375256,12.43671,1570.7,1570.4,6.36765]
[1744390375589,6.07,1570.7,1570.5,6.36725]
[1744390375756,6.07,1570.7,1570.4,12.73529]
[1744390376287,12.4366,1570.7,1570.4,6.36764]
[1744390376456,14.397836,1570.7,1570.4,6.36777]
[1744390376657,8.031236,1570.7,1570.4,12.73554]
[1744390376952,6.07,1570.7,1570.6,6.36699]
[1744390378292,6.07,1570.7,1570.5,12.73443]
[1744390378491,6.07,1570.7,1570.5,6.3672]
[1744390378795,12.4366,1570.7,1570.4,6.3677]
[1744390379101,6.07,1570.7,1570.6,6.36699]
[1744390379256,6.07,1570.7,1570.5,6.36738]
[1744390379458,6.07,1570.7,1570.4,12.73538]
[1744390379787,12.43663,1570.7,1570.4,6.36769]
[1744390379990,14.395613,1570.7,1570.4,6.36769]
[1744390380404,6.20247742,1570.6,1570.4,6.36768]
[1744390380907,6.25089267,1570.6,1570.4,6.36768]
[1744390381076,6.25089267,1570.6,1570.4,12.73535]
[1744390381274,6.25089267,1570.6,1570.4,6.36767]
[1744390381602,6.25089267,1570.6,1570.5,6.36739]
[1744390382304,6.25089267,1570.6,1570.4,6.36764]
[1744390382826,6.25089267,1570.6,1570.2,6.3685]
[1744390382827,13.24381,1570.5,1570.2,6.3685]
[1744390382962,19.6114,1570.5,1570.2,6.3685]
[1744390383298,6.54782328,1570.4,1570.1,6.36892]
[1744390383477,6.54782328,1570.4,1570.2,6.36845]
[1744390383478,0.17973328,1570.4,1570.2,6.36845]
[1744390383671,6.54759328,1570.4,1570.1,6.36902]
[1744390383876,6.07,1570.3,1569.8,6.807]
[1744390384101,0.7918,1570.0,1569.6,1.400585]
[1744390384297,6.07,1569.9,1569.5,0.75]
[1744390384503,6.37028,1569.8,1569.5,6.37132]
[1744390384702,6.37028,1569.8,1569.5,12.74263]
[1744390384861,6.37028,1569.8,1569.5,6.37131]
[1744390385304,6.37028,1569.8,1569.5,12.74261]
[1744390385605,6.07,1569.9,1569.8,6.37023]
[1744390386467,6.07,1570.1,1569.9,6.36968]
[1744390386977,6.07,1570.1,1570.0,6.36942]
[1744390387566,6.07,1570.1,1569.9,12.73936]
[1744390388091,6.07,1570.1,1569.9,6.36968]
[1744390388429,6.07,1570.1,1570.0,6.36942]
[1744390389878,6.07,1570.1,1569.9,6.36967]
[1744390390222,6.8728,1570.1,1569.8,12.7404]
[1744390390423,20.935404,1570.1,1569.7,6.37063]
[1744390390596,6.07,1570.0,1569.8,6.3702]
[1744390391111,6.07,1570.0,1569.9,6.36983]
[1744390391282,6.07,1570.0,1569.8,6.37008]
[1744390391791,6.07,1570.0,1569.9,6.36983]
[1744390392378,6.75728,1570.0,1569.3,10.17015]
[1744390392611,6.07,1569.9,1569.7,6.37024]
[1744390392822,6.07,1570.0,1569.8,6.37023]
[1744390393194,6.07,1570.0,1569.9,6.36983]
[1744390393393,6.07,1570.1,1570.0,6.36942]
[1744390394788,6.07,1570.1,1570.0,7.17582]
[1744390394995,6.07,1570.1,1570.0,9.167326]
[1744390395227,6.07,1570.4,1570.3,6.3682]
[1744390395428,6.07,1570.4,1570.1,6.36899]
[1744390395740,6.07,1570.4,1570.1,12.73798]
[1744390396029,12.4378,1570.4,1570.1,12.73798]
[1744390396220,3.55,1570.2,1569.7,6.37062]
[1744390396417,6.37037,1569.8,1569.5,6.37107]
[1744390396603,18.81178,1569.7,1569.4,6.37174]
[1744390396806,0.7936,1569.6,1569.4,6.37184]
[1744390397929,0.7936,1569.6,1569.4,6.37174]
[1744390398226,9.07,1569.7,1569.5,12.7429]
[1744390398429,6.07,1569.7,1569.6,6.37104]
[1744390399933,6.07,1569.8,1569.7,6.37064]
[1744390400103,6.07,1569.8,1569.6,6.37089]
[1744390400304,20.354787,1569.8,1569.5,6.37136]
[1744390400608,13.984277,1569.8,1569.5,6.37133]
[1744390400937,13.984277,1569.8,1569.4,6.37185]
[1744390400938,20.354877,1569.8,1569.4,12.7437]
[1744390401139,7.15163,1569.7,1569.4,6.37185]
[1744390401641,7.15163,1569.7,1569.5,6.37123]
[1744390401642,3.7808,1569.7,1569.5,6.37123]
[1744390401940,13.984227,1569.8,1569.6,6.37104]
[1744390401941,6.07,1569.8,1569.6,6.37104]
[1744390402105,13.18507,1569.8,1569.5,12.7426]
[1744390402312,13.18507,1569.8,1569.5,6.37126]
[1744390402536,6.37076,1569.7,1569.4,6.37179]
[1744390402741,6.37076,1569.7,1569.3,6.37226]
[1744390402742,6.37076,1569.7,1569.3,12.74442]
[1744390402955,3.0,1569.7,1569.5,6.37114]
[1744390403102,3.8279,1569.9,1569.6,6.37104]
[1744390403431,10.19775,1569.9,1569.6,12.74184]
[1744390403920,10.19775,1569.9,1569.6,6.3708]
[1744390404121,10.19775,1569.9,1569.6,6.37102]
[1744390404342,17.587725,1569.9,1569.6,6.37102]
[1744390404846,3.8279,1569.9,1569.6,6.37093]
[1744390405002,3.8279,1569.9,1569.7,6.3705]
[1744390405206,0.8279,1569.9,1569.5,6.3714]
[1744390405437,6.37049,1569.8,1569.5,6.3714]
[1744390405738,6.37049,1569.8,1569.5,12.7428]
[1744390405916,12.74088,1569.8,1569.5,6.3714]
[1744390406317,6.37066,1569.7,1569.4,12.74352]
[1744390406744,7.727268,1569.8,1569.5,6.37133]
[1744390406943,4.356878,1569.8,1569.4,6.37186]
[1744390407108,3.8279,1569.9,1569.7,6.37064]
[1744390407309,3.0,1569.8,1569.6,6.37093]
[1744390408848,0.7807,1570.1,1569.9,6.36961]
[1744390409019,7.14905,1570.3,1570.0,7.006281]
[1744390409222,14.23303029,1570.6,1570.1,6.36881]
[1744390409223,6.36706,1570.6,1570.1,6.36881]
[1744390409428,9.96713599,1570.5,1570.2,6.36848]
[1744390409748,0.55,1570.4,1570.0,6.36922]
[1744390409950,0.7807,1570.3,1569.8,6.37023]
[1744390410111,0.7807,1570.3,1570.1,6.36885]
[1744390410519,6.36757,1570.5,1570.2,12.73694]
[1744390410724,9.36792,1570.4,1570.1,7.15272]
[1744390410926,15.73593,1570.4,1570.1,6.36892]
[1744390411428,9.36792,1570.4,1570.1,12.73784]
[1744390411732,9.36792,1570.4,1570.1,6.3689]
[1744390411932,17.309478,1570.4,1570.1,6.3689]
[1744390412262,6.36873,1570.2,1569.9,13.5411]
[1744390413259,12.73749,1570.2,1569.9,7.17129]
[1744390413626,12.73752,1570.2,1569.9,7.17129]
[1744390413828,6.36904,1570.1,1569.8,12.74027]
[1744390414356,12.7376,1570.2,1569.8,12.74027]
[1744390414554,14.14673,1570.2,1569.8,12.74027]
[1744390414865,7.77786,1570.2,1569.9,6.36973]
[1744390415226,1.40913,1570.2,1569.9,12.73946]
[1744390415528,1.40913,1570.2,1569.9,6.36973]
[1744390415529,10.77793,1570.2,1569.9,6.36973]
[1744390415733,17.14683,1570.2,1569.9,6.36973]
[1744390415933,10.77793,1570.2,1569.9,12.73943]
[1744390416242,10.77793,1570.2,1569.9,12.73939]
[1744390416442,17.14668,1570.2,1569.9,6.36969]
[1744390416654,10.77788,1570.2,1569.9,6.36969]
[1744390417164,17.14665,1570.2,1569.9,6.36969]
[1744390417949,10.77788,1570.2,1569.9,6.36982]
[1744390418150,17.14685,1570.2,1569.9,6.36982]
[1744390418449,6.36923,1570.1,1569.8,6.37013]
[1744390418758,6.36923,1570.1,1569.7,7.14712]
[1744390418759,6.36945,1570.0,1569.7,6.37052]
[1744390418936,7.12395,1570.0,1569.7,12.74104]
[1744390419340,0.7545,1570.0,1569.8,6.37023]
[1744390419539,0.7545,1570.0,1569.8,6.37011]
[1744390420241,8.9447315,1570.0,1569.7,6.37055]
[1744390420441,8.9447315,1570.0,1569.7,6.37051]
[1744390420671,8.9447315,1570.0,1569.7,12.74102]
[1744390420876,8.9447315,1570.0,1569.5,7.17821]
[1744390420877,6.37028,1569.8,1569.5,7.17821]
[1744390421085,6.37028,1569.8,1569.3,6.37223]
[1744390421086,6.3713,1569.6,1569.3,7.16636]
[1744390421381,6.92281,1569.2,1568.8,0.7578]
[1744390421551,0.8074,1569.4,1568.9,6.37389]
[1744390421756,3.8074,1569.4,1569.1,6.37268]
[1744390421956,10.17927,1569.4,1569.1,6.37268]
[1744390422175,6.143303,1569.4,1569.1,6.37268]
[1744390422346,12.515173,1569.4,1569.1,12.74563]
[1744390422548,3.8074,1569.4,1569.2,6.37259]
[1744390423053,0.8074,1569.4,1569.1,12.74563]
[1744390423477,6.808,1569.5,1569.2,6.3726]
[1744390423775,6.808,1569.5,1569.3,6.37214]
[1744390423981,3.8117,1569.6,1569.3,12.74424]
[1744390424180,10.18277,1569.6,1569.3,6.3721]
[1744390424369,18.9539818,1569.6,1569.2,12.74518]
[1744390424542,18.9539818,1569.6,1569.2,12.74514]
[1744390425390,3.8117,1569.6,1569.3,6.37202]
[1744390425567,3.8117,1569.6,1569.4,6.37174]
[1744390426089,3.0,1569.6,1569.4,12.74345]
[1744390426301,0.8322,1569.8,1569.5,6.37115]
[1744390426527,0.8322,1569.8,1569.3,6.37224]
[1744390426528,15.3167115,1570.0,1569.6,12.74182]
[1744390426797,3.0,1569.8,1569.6,6.37091]
[1744390427099,3.0,1569.8,1569.4,7.18174]
[1744390427100,6.36912,1570.1,1569.7,7.14774]
[1744390427299,12.73851,1570.1,1569.7,7.14774]
[1744390427465,9.36956,1570.0,1569.5,7.14817]
[1744390427670,6.36956,1570.0,1569.7,6.37063]
[1744390427996,7.643428,1570.0,1569.7,6.37063]
[1744390428667,14.012998,1570.0,1569.7,6.37063]
[1744390429217,5.42578961,1570.4,1569.7,0.84320471]
[1744390429373,6.36861,1570.2,1569.9,6.36944]
[1744390429771,6.36861,1570.2,1569.9,12.73915]
[1744390430173,12.73739,1570.2,1569.9,6.36944]
[1744390430391,6.36861,1570.2,1569.9,6.36944]
[1744390430574,6.36903,1570.1,1569.8,6.37011]
[1744390430775,6.36903,1570.1,1569.8,12.74021]
[1744390430973,6.36903,1570.1,1569.8,6.3701]
[1744390431210,7.17343,1570.1,1569.8,6.3701]
[1744390431473,6.36944,1570.0,1569.7,6.37057]
[1744390431709,7.1735,1570.1,1569.8,6.37]
[1744390432119,7.1735,1570.1,1569.8,12.74]
[1744390432317,0.8044,1570.1,1569.8,12.74]
[1744390432717,7.17344,1570.1,1569.8,6.37]
[1744390432915,7.17344,1570.1,1569.7,7.007607]
[1744390432916,6.36994,1569.9,1569.6,6.37093]
[1744390433417,6.37044,1569.8,1569.5,6.37132]
[1744390433581,6.37065,1569.7,1569.4,12.7435]
[1744390433779,6.37065,1569.7,1569.3,0.8062]
[1744390433780,7.14595,1569.7,1569.3,7.17842]
[1744390433985,9.37118,1569.6,1569.3,7.17842]
[1744390434289,9.37118,1569.6,1569.3,7.17833]
[1744390434491,9.37118,1569.6,1569.3,13.55046]
[1744390434796,15.7424,1569.6,1569.3,7.17833]
[1744390434994,15.7424,1569.6,1569.3,6.37213]
[1744390435191,4.7232295,1569.6,1569.1,13.9959]
[1744390435416,6.372,1569.4,1569.1,13.203]
[1744390435924,6.3737,1569.0,1568.8,5.4879802]
[1744390436129,3.0,1568.8,1568.4,5.4879802]
[1744390436279,9.37433,1568.8,1568.4,11.8636202]
[1744390436619,6.37474,1568.7,1568.4,11.8636202]
[1744390436926,6.37534,1568.6,1568.4,5.4879802]
[1744390437285,6.37551,1568.5,1568.4,5.4879802]
[1744390438090,12.031695,1568.5,1568.4,5.4879802]
[1744390438831,18.863695,1568.5,1568.4,5.4879802]
[1744390440791,18.863695,1568.5,1568.4,2e-07]
[1744390441018,6.92633,1568.3,1568.1,4.5e-06]
[1744390441218,9.37714,1568.1,1568.0,8.1820941]
[1744390441419,3.0,1567.9,1567.6,0.7502]
[1744390441631,3.0,1567.9,1567.6,13.50821]
[1744390441843,3.0,1567.9,1567.7,6.37873]
[1744390442007,3.0,1567.9,1567.6,7.12917]
[1744390442342,6.37755,1568.0,1567.6,7.842087]
[1744390442509,3.0,1568.0,1567.7,6.3785]
[1744390442702,3.0,1568.0,1567.8,6.3782]
[1744390443132,3.0,1568.0,1567.7,6.3785]
[1744390443329,3.0,1568.0,1567.7,12.7571]
[1744390444137,3.0,1568.0,1567.6,7.842287]
[1744390444342,9.37779,1568.0,1567.6,14.221307]
[1744390444513,3.0,1568.0,1567.7,6.37862]
[1744390445136,3.0,1568.0,1567.7,12.75724]
[1744390446159,6.833,1568.1,1567.9,6.37795]
[1744390446448,6.833,1568.1,1567.9,12.75577]
[1744390446650,3.6722,1568.2,1567.9,6.37782]
[1744390446812,10.04895,1568.2,1567.8,12.75639]
[1744390447013,16.42589,1568.2,1567.8,6.37819]
[1744390447213,11.691539,1568.2,1567.8,12.75641]
[1744390447647,18.068489,1568.2,1567.8,12.75641]
[1744390447945,13.30492,1568.1,1567.7,12.7572]
[1744390448148,18.068569,1568.2,1567.8,6.37819]
[1744390448651,6.37728,1568.1,1567.8,6.37819]
[1744390448851,11.691619,1568.2,1567.8,12.75641]
[1744390449051,3.0,1568.2,1567.9,6.37795]
[1744390449236,9.377,1568.2,1567.8,6.37822]
[1744390449550,3.0,1568.2,1567.6,7.12933]
[1744390449854,3.0,1568.2,1568.0,6.37753]
[1744390450156,9.37679,1568.2,1567.9,6.3778]
[1744390450447,9.37679,1568.2,1567.9,12.75559]
[1744390450448,3.0,1568.2,1567.9,12.75559]
[1744390450625,9.37681,1568.2,1567.9,6.37779]
[1744390451028,3.0,1568.2,1567.9,12.75561]
[1744390451227,9.37681,1568.2,1567.9,6.37779]
[1744390451422,10.952128,1568.2,1567.9,6.37791]
[1744390451627,10.952128,1568.2,1567.9,12.75572]
[1744390451837,3.0,1568.2,1567.9,12.75562]
[1744390452148,9.37695,1568.2,1567.8,6.37818]
[1744390452520,9.37695,1568.2,1567.9,6.3778]
[1744390452838,9.37695,1568.2,1567.9,12.75564]
[1744390453267,15.7539,1568.2,1567.8,6.37828]
[1744390453445,6.37723,1568.1,1567.8,6.37828]
[1744390453654,6.37816,1567.9,1567.6,7.12928]
[1744390453950,12.75537,1568.0,1567.6,13.50831]
[1744390454134,7.13076,1568.1,1567.8,6.37819]
[1744390454333,7.13076,1568.1,1567.7,6.37877]
[1744390454539,9.37756,1568.0,1567.7,6.37866]
[1744390454737,3.0,1567.8,1567.4,0.7669]
[1744390454941,3.0,1567.9,1567.7,6.37865]
[1744390455141,0.55,1568.0,1567.6,12.75773]
[1744390455361,6.92795,1568.0,1567.7,6.37853]
[1744390455560,14.6256665,1568.0,1567.7,6.37853]
[1744390455760,6.37815,1567.9,1567.6,6.37909]
[1744390455960,6.37815,1567.9,1567.6,6.37903]
[1744390456140,6.37815,1567.9,1567.6,12.75807]
[1744390456463,6.37815,1567.9,1567.6,12.75834]
[1744390456768,3.0,1567.9,1567.7,6.37872]
[1744390457263,3.0,1567.9,1567.8,6.37836]
[1744390457439,3.0,1567.9,1567.7,6.3786]
[1744390457847,3.0,1567.9,1567.8,6.37836]
[1744390458170,6.837,1568.0,1567.9,6.37795]
[1744390458341,4.679215,1568.1,1567.9,6.37795]
[1744390458537,11.056485,1568.1,1567.8,6.37836]
[1744390458740,1.1056485,1568.0,1567.7,13.54088]
[1744390458939,7.4832185,1568.0,1567.7,13.54087]
[1744390459142,7.4833585,1568.0,1567.6,12.75821]
[1744390459341,7.4833585,1568.0,1567.8,6.37827]
[1744390459342,1.1056485,1568.0,1567.8,6.37827]
[1744390459652,6.37815,1567.9,1567.6,6.37906]
[1744390459849,4.38614385,1567.9,1567.6,6.37905]
[1744390460041,4.38614385,1567.9,1567.7,6.37874]
[1744390461464,1.38614385,1567.9,1567.8,6.37836]
[1744390461625,13.73987187,1568.1,1567.8,12.75672]
[1744390461825,7.36268187,1568.1,1567.9,6.37793]
[1744390462024,10.13075,1568.1,1567.8,12.75672]
[1744390462663,3.0,1568.1,1567.9,6.3777]
[1744390463243,3.0,1568.1,1567.8,6.37824]
[1744390463457,10.31486,1568.1,1567.8,12.75649]
[1744390464063,10.31486,1568.1,1567.8,6.37824]
[1744390464273,10.31486,1568.1,1567.8,12.75648]
[1744390465369,6.07,1568.0,1567.8,12.75648]
[1744390465549,6.07,1568.0,1567.8,6.37824]
[1744390465749,14.086046,1568.0,1567.7,12.75728]
[1744390465971,14.899346,1568.0,1567.7,12.75729]
[1744390466150,14.899346,1568.0,1567.7,6.37864]
[1744390466470,6.37807,1567.9,1567.6,6.37906]
[1744390466704,14.899466,1568.0,1567.7,6.3787]
[1744390466705,21.277226,1568.0,1567.7,6.3787]
[1744390466910,8.5056726,1567.9,1567.7,6.3787]
[1744390467266,8.5058226,1567.9,1567.6,12.75818]
[1744390467469,5.1277226,1567.9,1567.6,6.37905]
[1744390467777,5.1277226,1567.9,1567.7,6.37876]
[1744390468107,6.07,1568.0,1567.9,6.37795]
[1744390468268,6.07,1568.0,1567.8,7.15725]